[Event "13th All African Mixed Team Rapid-ch 202"]
[Site "Accra"]
[Date "2024.03.09"]
[Round "4.5"]
[White "Arab, Adlane"]
[Black "Zhemba, Jemusse"]
[Result "1-0"]
[ECO "D37"]
[WhiteElo "2477"]
[BlackElo "2226"]
[Annotator "TA"]
[PlyCount "139"]
[EventDate "2024.03.07"]
[EventType "rapid"]
[EventCountry "GHA"]
[SourceTitle "playchess.com"]
[Source "ChessBase"]
[SourceQuality "1"]
[TimeControl "900+10"]

{[%evp 13,139,28,36,16,30,10,26,0,16,0,1,0,0,-21,-9,-6,1,-17,-15,-20,-20,-21,-17,-27,-34,-41,0,-4,0,-25,-6,-6,11,0,10,6,25,12,22,18,10,0,12,0,4,10,26,21,21,13,29,0,43,17,55,50,47,56,53,49,53,52,52,34,48,48,66,63,76,62,83,28,31,53,59,37,58,57,51,49,359,341,351,381,377,375,339,328,500,540,529,516,532,529,660,660,616,504,1572,1496,1604,1548,1064,633,1156,999,1151,1066,882,620,616,602,576,444,716,625,584,0,710,694,675,672,660,632,1772,1890,2030,1724]} 1. d4 {[%emt 0:15:20]} Nf6 {[%emt 0:00:45]} 2. c4 {[%emt 0:00:00]} e6 {[%emt 0:00:01]} 3. Nf3 {[%emt 0:00:20]} d5 {[%emt 0:00:07]} 4. Nc3 {[%emt 0:00:00]} Be7 {[%emt 0:00:18]} 5. Bf4 {[%emt 0:00:00]} O-O {[%emt 0:00:04]} 6. e3 {[%emt 0:00:00]} a6 {[%emt 0:00:15]} 7. a3 {[%emt 0:00:00]} dxc4 {[%emt 0:00:30]} 8. Bxc4 {[%emt 0:00:00]} c5 {[%emt 0:00:02]} 9. O-O {[%emt 0:00:00]} b5 {[%emt 0:00:02] ...cxd4 would now be deadly.} 10. Ba2 {[%emt 0:00:00] White has an edge.} Bb7 {[%emt 0:00:05]} 11. Qe2 {[%emt 0:00:00]} Nbd7 {[%emt 0:00:04]} 12. Rfd1 {[%emt 0:00:00]} cxd4 {[%emt 0:00:42]} 13. exd4 {[%emt 0:00:00]} Nb6 {[%emt 0:00:11]} 14. Ne5 {[%emt 0:00:00]} Nbd5 {[%emt 0:00:09]} 15. Nxd5 {[%emt 0:00:00]} Bxd5 {[%emt 0:00:25]} 16. Bb1 {[%emt 0:00:00]} Qb6 {[%emt 0:00:27]} 17. Qe3 {[%emt 0:00:00]} Qb7 {[%emt 0:00:27]} 18. Qh3 {[%emt 0:00:00]} Be4 {[%emt 0:00:02]} 19. Ba2 {[%emt 0:00:00]} Bd5 {[%emt 0:00:02]} 20. Bb1 {[%emt 0:00:00]} Be4 {[%emt 0:00:01]} 21. Ba2 {[%emt 0:00:00]} Nd5 {[%emt 0:00:12]} 22. Bd2 {[%emt 0:00:00]} Bd6 {[%emt 0:01:28]} 23. Re1 {[%emt 0:00:00]} Bf5 {[%emt 0:00:20]} 24. Qf3 {[%emt 0:00:00]} Rac8 {[%emt 0:01:15]} 25. Bb3 {[%emt 0:00:00]} Bc2 {[%emt 0:00:47]} 26. Bxd5 {[%emt 0:00:00]} exd5 {[%emt 0:00:07]} 27. Bb4 {[%emt 0:00:00]} Be4 {[%emt 0:00:45]} 28. Qb3 {[%emt 0:00:00]} Rfd8 {[%emt 0:01:30]} 29. Bxd6 {[%emt 0:00:00]} Rxd6 {[%emt 0:00:02]} 30. Rac1 {[%emt 0:00:00]} Rdd8 {[%emt 0:00:51]} 31. f3 {[%emt 0:00:00]} Bf5 {[%emt 0:00:09]} 32. Qe3 {[%emt 0:00:00][%cal Oe5c6] Threatens to win with Nc6!} Re8 {[%emt 0:00:50]} 33. Qf4 {[%emt 0:00:00]} Be6 {[%emt 0:00:01]} 34. Nd3 {[%emt 0:00:00] Black is weak on the dark squares} Rc4 {[%emt 0:01:01]} 35. Nc5 {[%emt 0:00:00]} Qb6 {[%emt 0:00:10] aiming for ...Qxc5.} 36. b3 {[%emt 0:00:00]} Rxc1 {[%emt 0:00:08]} 37. Qxc1 {[%emt 0:00:00]} h6 {[%emt 0:00:08]} 38. Re3 {[%emt 0:00:00]} a5 {[%emt 0:00:05]} 39. Qe1 {[%emt 0:00:00]} Rc8 {[%emt 0:00:37]} 40. h3 {[%emt 0:00:00]} Rc6 {[%emt 0:00:08]} 41. Kh1 {[%emt 0:00:00] White is more active.} b4 {[%emt 0:00:21] [#]} 42. a4 {[%emt 0:00:00]} ({Better is} 42. axb4 $1 $16 axb4 43. Kg1) 42... Rxc5 {[%emt 0:00:11]} 43. dxc5 {[%emt 0:00:00]} Qxc5 $11 {[%emt 0:00:01][%mdl 4096] Endgame. KQR-KQB} 44. Qd2 {[%emt 0:00:00]} Kh8 {[%emt 0:00:52]} 45. Rd3 {[%emt 0:00:00]} Kg8 {[%emt 0:00:15]} 46. f4 {[%emt 0:00:00][%cal Of4f5] Strongly threatening f5!} Kh7 $2 {[%emt 0:01:47][%mdl 8192] [#] White now steadily converts the win.} (46... Qc6 $14) 47. f5 $1 $18 {[%emt 0:00:00][%mdl 512]} Bxf5 {[%emt 0:00:01]} 48. Rxd5 {[%emt 0:00:00]} Qc8 {[%emt 0:00:58]} 49. Rxa5 {[%emt 0:00:00]} Be4 {[%emt 0:00:02]} 50. Kg1 {[%emt 0:00:00]} (50. Qxb4 $2 {gets mated.} Qxh3+ 51. Kg1 Qxg2#) 50... Qb7 {[%emt 0:00:57]} (50... Qe6 $142) 51. Rb5 {[%emt 0:00:14]} Qa7+ {[%emt 0:00:14]} 52. Kh1 {[%emt 0:00:20]} f5 {[%emt 0:00:51]} 53. Rxb4 {[%emt 0:00:07]} Qc5 {[%emt 0:00:08]} 54. Rd4 {[%emt 0:00:21] Dodges Bd3} Qa3 {[%emt 0:00:10]} 55. Qe3 {[%emt 0:00:23]} Bc2 {[%emt 0:00:46]} (55... Qb2 $142 56. Rd2 Qf6) 56. Rd7 {[%emt 0:07:25]} Qa1+ {[%emt 0:00:28]} 57. Kh2 {[%emt 0:00:00]} Qf6 {[%emt 0:01:11]} 58. Qe7 {[%emt 0:00:00]} Qg6 {[%emt 0:00:10]} 59. Rd6 {[%emt 0:00:00]} Qh5 {[%emt 0:00:13]} 60. Qe5 {[%emt 0:00:00]} Be4 {[%emt 0:00:04]} 61. Rd7 {[%emt 0:00:00]} Qg5 {[%emt 0:00:02]} 62. Qg3 {[%emt 0:00:00] And now Qxg5 would win.} Qf6 {[%emt 0:00:01]} 63. Qf4 {[%emt 0:00:00]} Qc6 {[%emt 0:00:27]} (63... Qb2 $142 64. Qg3 Qf6) 64. Rd2 {[%emt 0:00:00]} Qc3 {[%emt 0:00:08]} 65. Rd7 {[%emt 0:00:00]} Qc6 $1 {[%emt 0:00:15]} 66. Rc7 {[%emt 0:00:00] White is clearly winning.} Qb6 {[%emt 0:00:09]} 67. Qg3 {[%emt 0:00:00]} Qf6 {[%emt 0:00:01]} 68. a5 {[%emt 0:00:00][%cal Ba4a5,Ba5a6][%mdl 32]} h5 {[%emt 0:00:00]} 69. h4 {[%emt 0:00:00]} Qb2 {[%emt 0:00:44]} 70. a6 {[%emt 0:00:00] Weighted Error Value: White=0.18 (very precise) /Black=0.26 (precise) .  Loses game:     	---       	Black=1      Mistake:       	White=1     	Black=1      Inaccurate:     	White=3     	Black=3      OK:         	White=17    	Black=15     Best:        	White=3     	Black=1      Brilliant:      	White=1     	---} 1-0

[Event "13th All African Mixed Team Rapid-ch 202"]
[Site "Accra"]
[Date "2024.03.09"]
[Round "4.6"]
[White "Shaba, Linda Dalitso"]
[Black "Nassr, Lina"]
[Result "0-1"]
[ECO "E03"]
[WhiteElo "1836"]
[BlackElo "2080"]
[Annotator "RC"]
[PlyCount "50"]
[EventDate "2024.03.07"]
[EventType "rapid"]
[EventCountry "GHA"]
[SourceTitle "playchess.com"]
[Source "ChessBase"]
[SourceQuality "1"]
[TimeControl "900+10"]

1. d4 {[%emt 0:00:04]} Nf6 {[%emt 0:00:08]} 2. c4 {[%emt 0:00:17]} e6 {[%emt 0:00:02]} 3. Nf3 {[%emt 0:00:03]} d5 {[%emt 0:00:02]} 4. g3 {[%emt 0:00:02]} dxc4 {[%emt 0:00:20]} 5. Qa4+ {[%emt 0:00:15]} Nbd7 {[%emt 0:00:05]} 6. Qxc4 {[%emt 0:01:03]} a6 {[%emt 0:00:10]} 7. Bg2 {[%emt 0:00:10]} c5 {[%emt 0:00:33]} 8. dxc5 {[%emt 0:02:27]} Bxc5 {[%emt 0:00:16]} 9. b4 {[%emt 0:01:18]} Be7 {[%emt 0:02:53]} 10. Bb2 {[%emt 0:01:05]} b5 {[%emt 0:00:47]} 11. Qb3 {[%emt 0:01:10]} Bb7 {[%emt 0:00:08]} 12. O-O {[%emt 0:00:03]} Bd5 {[%emt 0:00:28]} 13. Qc3 {[%emt 0:01:34]} Rc8 {[%emt 0:00:30]} 14. Qe1 {[%emt 0:00:54]} O-O {[%emt 0:00:38]} 15. a3 {[%emt 0:00:05]} Nb6 {[%emt 0:01:38]} 16. Nbd2 {[%emt 0:00:46]} Rc2 {[%emt 0:01:41]} 17. Qb1 {[%emt 0:01:36]} Rxd2 {[%emt 0:01:57]} 18. Nxd2 {[%emt 0:00:37]} Bxg2 {[%emt 0:00:03]} 19. Rd1 {[%emt 0:00:30]} Bb7 {[%emt 0:01:06]} 20. Nf3 {[%emt 0:00:37]} Qa8 {[%emt 0:00:27]} 21. Qd3 {[%emt 0:01:00]} Nc4 {[%emt 0:00:28]} 22. Bc3 {[%emt 0:00:40]} Rd8 {[%emt 0:00:28]} 23. Qc2 {[%emt 0:00:49]} Rc8 {[%emt 0:00:05]} 24. Qd3 {[%emt 0:00:34]} Be4 {[%emt 0:00:20]} 25. Qd4 {[%emt 0:00:04]} Rd8 {[%emt 0:00:08]} 0-1

[Event "13th All African Mixed Team Rapid-ch 202"]
[Site "Accra"]
[Date "2024.03.09"]
[Round "4.7"]
[White "Rakotomaharo, Fy Antenaina"]
[Black "Pereira, Sergio Murilo de Ara"]
[Result "1-0"]
[ECO "D27"]
[WhiteElo "2454"]
[BlackElo "2115"]
[Annotator "TA"]
[PlyCount "49"]
[EventDate "2024.03.07"]
[EventType "rapid"]
[EventCountry "GHA"]
[SourceTitle "playchess.com"]
[Source "ChessBase"]
[SourceQuality "1"]
[TimeControl "900+10"]

{[%evp 24,49,67,71,141,139,184,189,288,278,284,276,284,297,291,283,391,387,508,527,646,615,29981,29982,29990,29991,29991,29992]} 1. Nf3 {[%emt 0:00:03]} d5 {[%emt 0:00:07]} 2. e3 {[%emt 0:00:02]} Nf6 {[%emt 0:00:14]} 3. c4 {[%emt 0:00:02]} e6 {[%emt 0:00:41]} 4. Nc3 {[%emt 0:00:02]} dxc4 {[%emt 0:00:20]} 5. Bxc4 {[%emt 0:00:03]} a6 {[%emt 0:00:01]} 6. a4 {[%emt 0:00:10]} Be7 {[%emt 0:14:47]} 7. d4 {[%emt 0:00:41]} c5 {[%emt 0:00:00]} 8. O-O {[%emt 0:00:30]} cxd4 {[%emt 0:00:00]} 9. exd4 {[%emt 0:00:03]} O-O {[%emt 0:00:00]} 10. Qe2 {[%emt 0:00:02]} Nc6 {[%emt 0:00:00][%cal Bb8c6,Bc6b4,Bb4d5][%mdl 32]} 11. Rd1 {[%emt 0:00:03][%cal Bf1d1,Bd1d3,Bd3g3][%mdl 32]} Nb4 {[%emt 0:00:00]} 12. Ne5 {[%emt 0:00:27]} Nbd5 {[%emt 0:00:00]} 13. Rd3 {[%emt 0:00:42] Weiß steht deutlich aktiver. Die schwarzen Türme stehen passiv.} Qc7 {[%emt 0:00:00]} (13... Nb4 $142) 14. Rg3 $16 {[%emt 0:00:36]} Kh8 {[%emt 0:00:00]} 15. Bg5 {[%emt 0:01:04]} b6 {[%emt 0:00:00]} (15... Ng8 $142) 16. Bxd5 $18 {[%emt 0:01:56]} exd5 {[%emt 0:00:00]} 17. Bxf6 {[%emt 0:00:04]} Bxf6 {[%emt 0:00:00]} 18. Nxd5 {[%emt 0:00:01] Ein dynamisches Springerpaar.} Qd6 {[%emt 0:00:00]} 19. Nxf6 {[%emt 0:00:07]} Qxf6 {[%emt 0:00:00]} 20. Rf3 {[%emt 0:00:03]} Qe6 {[%emt 0:00:00] [#]} 21. d5 $1 {[%emt 0:00:02][%mdl 512]} Qxd5 {[%emt 0:00:00]} (21... Qe8 22. Rxf7) 22. Rd1 {[%emt 0:00:07]} Qa2 {[%emt 0:00:00][%cal Of7f6] [#]} 23. Nxf7+ {[%emt 0:00:17][%mdl 512] Weiß setzt Matt.} Kg8 {[%emt 0:00:00] [#]} (23... Qxf7 24. Rxf7) 24. Nh6+ $1 {[%emt 0:00:45][%mdl 512]} gxh6 {[%emt 0:00:00]} 25. Rg3+ {[%emt 0:00:02] Schwarz wurde aus der Eröffnung heraus überspielt.   Gewichteter Fehlerwert: Weiß=0.03 (makellos) /Schwarz=1.07.  Fehler:       	---       	Schwarz=1     Ungenau:       	---       	Schwarz=4     OK:         	Weiß=4     	Schwarz=1     Bester:       	Weiß=3     	---        Brilliant:      	Weiß=1     	---} 1-0

[Event "13th All African Mixed Team Rapid-ch 202"]
[Site "Accra"]
[Date "2024.03.09"]
[Round "4.9"]
[White "KIGIGHA, Bomo Lovet"]
[Black "Paiva, Donaldo"]
[Result "1/2-1/2"]
[ECO "A36"]
[WhiteElo "2231"]
[BlackElo "2172"]
[Annotator "TA"]
[PlyCount "80"]
[EventDate "2024.03.07"]
[EventType "rapid"]
[EventCountry "GHA"]
[SourceTitle "playchess.com"]
[Source "ChessBase"]
[SourceQuality "1"]
[TimeControl "900+10"]

{[%evp 20,80,-4,-18,0,0,0,0,0,0,0,0,-5,-3,0,0,0,-3,5,0,0,0,0,0,0,0,0,0,0,0,0,0,0,0,0,0,0,0,0,0,0,0,35,0,0,0,0,0,0,0,0,0,0,0,0,0,0,0,0,0,0,-29996,29991]} 1. Nf3 {[%emt 0:00:02]} c5 {[%emt 0:00:05]} 2. c4 {[%emt 0:00:03]} Nc6 {[%emt 0:00:02]} 3. g3 {[%emt 0:00:02]} g6 {[%emt 0:00:01]} 4. Bg2 {[%emt 0:00:01]} Bg7 {[%emt 0:00:00]} 5. Nc3 {[%emt 0:00:02]} e6 {[%emt 0:00:02]} 6. O-O {[%emt 0:00:07]} Nge7 {[%emt 0:00:01]} 7. a3 {[%emt 0:00:17]} O-O {[%emt 0:01:37]} 8. e3 {[%emt 0:00:48]} d5 {[%emt 0:00:13]} 9. cxd5 {[%emt 0:00:03]} exd5 {[%emt 0:00:01]} 10. d4 {[%emt 0:00:06]} cxd4 {[%emt 0:00:09]} 11. Nxd4 {[%emt 0:00:01]} Nxd4 {[%emt 0:00:05]} 12. exd4 {[%emt 0:00:02]} Be6 {[%emt 0:00:57]} 13. Bg5 {[%emt 0:00:19]} h6 {[%emt 0:00:51] The position is equal.} 14. Bxe7 {[%emt 0:01:03]} Qxe7 {[%emt 0:00:01]} 15. Nxd5 {[%emt 0:00:03]} Bxd5 {[%emt 0:00:12]} 16. Bxd5 {[%emt 0:00:02]} Rad8 {[%emt 0:00:18]} 17. Qb3 {[%emt 0:00:59]} Bxd4 {[%emt 0:00:15]} 18. Rad1 $1 {[%emt 0:00:02]} Qf6 {[%emt 0:00:18]} 19. Rd3 {[%emt 0:00:41]} Rd7 {[%emt 0:00:38]} 20. Bf3 {[%emt 0:01:50]} Rfd8 {[%emt 0:00:36][%cal Od4f2] [#] White must now prevent ...Bxf2+!} 21. Rfd1 {[%emt 0:00:39]} b6 {[%emt 0:00:50]} 22. Kg2 {[%emt 0:00:48]} Rd6 {[%emt 0:00:34]} 23. R1d2 {[%emt 0:01:36]} Kg7 {[%emt 0:02:12]} 24. Qd1 {[%emt 0:00:25]} h5 {[%emt 0:00:43]} 25. h4 {[%emt 0:00:13]} a5 {[%emt 0:00:17]} 26. b3 {[%emt 0:00:06]} R8d7 {[%emt 0:00:36]} 27. b4 {[%emt 0:00:22]} axb4 {[%emt 0:00:48]} 28. axb4 {[%emt 0:09:08]} Qd8 {[%emt 0:00:16]} 29. Qb3 {[%emt 0:00:00]} Qf6 {[%emt 0:00:10]} 30. Qc4 {[%emt 0:00:00]} Qe6 {[%emt 0:01:19]} 31. Qb5 {[%emt 0:00:00]} (31. Rxd4 $2 {loses.} Qxc4 32. Rxd6 Rxd6 33. Rxd6 Qxb4 $19) (31. Qxe6 $5 fxe6 32. Rc2 $17) 31... Qe5 {[%emt 0:00:52]} 32. Qc4 {[%emt 0:00:00]} b5 {[%emt 0:00:37]} 33. Qb3 {[%emt 0:00:00]} Bb6 {[%emt 0:01:31]} 34. Rxd6 {[%emt 0:00:00]} Rxd6 {[%emt 0:00:03]} 35. Rxd6 {[%emt 0:00:00]} Qxd6 $11 {[%emt 0:00:02] KQB-KQB} 36. Qb2+ {[%emt 0:00:00]} Bd4 {[%emt 0:00:52]} 37. Qb3 {[%emt 0:00:00]} Qe5 {[%emt 0:00:31]} 38. Qd3 {[%emt 0:00:00]} Bb6 {[%emt 0:00:25]} 39. Be2 {[%emt 0:00:00]} Qd4 {[%emt 0:00:14]} 40. Qc4 $2 {[%emt 0:02:00][%mdl 8192] [#]} Qe4+ $4 {[%emt 0:00:00][%mdl 40960] Weighted Error Value: White=0.20 (precise) /Black=0.02 (flawless) .  Loses game:     	White=1     	---        Missed win:     	---       	Black=1      Inaccurate:     	White=1     	Black=1      OK:         	White=9     	Black=11     Strong:       	White=1     	---       . An unexpected result.} (40... Qxf2+ 41. Kh3 bxc4 42. Bxc4 Bc7 43. g4 Qh2#) 1/2-1/2

[Event "13th All African Mixed Team Rapid-ch 202"]
[Site "Accra"]
[Date "2024.03.09"]
[Round "4.10"]
[White "Vilhete, Vania Fausto Da T."]
[Black "PEACE SAMSON"]
[Result "0-1"]
[ECO "D12"]
[WhiteElo "1829"]
[BlackElo "1870"]
[Annotator "NA RC"]
[PlyCount "76"]
[EventDate "2024.03.07"]
[EventType "rapid"]
[EventCountry "GHA"]
[SourceTitle "playchess.com"]
[Source "ChessBase"]
[SourceQuality "1"]
[TimeControl "900+10"]

1. d4 {[%emt 0:00:10]} d5 {[%emt 0:00:04]} 2. c4 {[%emt 0:00:00]} c6 {[%emt 0:00:02]} 3. e3 {[%emt 0:00:00]} Nf6 {[%emt 0:00:03]} 4. Nf3 {[%emt 0:00:00]} Bf5 {[%emt 0:00:07]} 5. cxd5 {[%emt 0:00:11]} cxd5 {[%emt 0:00:06]} 6. Qb3 {[%emt 0:00:38]} Qc8 {[%emt 0:00:59]} 7. Nc3 {[%emt 0:00:10]} e6 {[%emt 0:00:22] D12: Slav Defence: 3 Nf3 Nf6 4 e3 Bf5.} 8. Bb5+ {[%emt 0:00:25]} Nbd7 {[%emt 0:00:06]} 9. O-O {[%emt 0:00:29]} a6 {[%emt 0:00:01]} 10. Be2 {[%emt 0:00:06]} Bd6 {[%emt 0:00:28]} 11. Bd2 {[%emt 0:00:27]} O-O {[%emt 0:00:22]} 12. Rac1 {[%emt 0:00:10]} Qb8 {[%emt 0:00:03]} 13. Rfd1 {[%emt 0:00:55]} Ne4 {[%emt 0:00:35]} 14. Be1 {[%emt 0:00:44]} h6 {[%emt 0:01:28]} 15. h3 {[%emt 0:00:21]} Qa7 {[%emt 0:01:35]} 16. Nxe4 {[%emt 0:01:03]} Bxe4 {[%emt 0:00:27]} 17. Bb4 {[%emt 0:00:42]} Bxb4 {[%emt 0:11:12]} 18. Qxb4 {[%emt 0:00:02]} Rac8 {[%emt 0:00:00]} 19. Qd6 {[%emt 0:01:23]} Bxf3 {[%emt 0:00:00]} 20. Bxf3 {[%emt 0:00:18]} Nb6 {[%emt 0:00:00]} 21. b3 {[%emt 0:00:31]} Rfd8 {[%emt 0:00:00]} 22. Qf4 {[%emt 0:01:00]} Nd7 {[%emt 0:00:00]} 23. Bh5 {[%emt 0:01:35]} Nf6 {[%emt 0:00:00]} 24. Be2 {[%emt 0:00:03]} Qb6 {[%emt 0:00:00]} 25. Bd3 {[%emt 0:00:30]} Qa5 {[%emt 0:00:00]} 26. Bb1 {[%emt 0:00:20]} Rc3 {[%emt 0:00:00]} 27. Rxc3 {[%emt 0:01:54]} Qxc3 {[%emt 0:00:00]} 28. Qf3 {[%emt 0:02:42]} Rc8 {[%emt 0:00:00]} 29. Rd3 {[%emt 0:00:15]} Qe1+ {[%emt 0:00:00]} 30. Kh2 {[%emt 0:00:12]} Qxb1 {[%emt 0:00:00]} 31. Qe2 {[%emt 0:00:23]} Rc2 {[%emt 0:00:00]} 32. Rd2 {[%emt 0:00:02]} Rc1 {[%emt 0:00:00]} 33. Rb2 {[%emt 0:00:57]} Rh1+ {[%emt 0:00:00]} 34. Kg3 {[%emt 0:00:01]} Qg6+ {[%emt 0:00:00]} 35. Kf3 {[%emt 0:00:48]} Qe4+ {[%emt 0:00:00]} 36. Kg3 {[%emt 0:00:23]} Qg6+ {[%emt 0:00:00]} 37. Kf3 {[%emt 0:00:04]} Rg1 {[%emt 0:00:45]} 38. Qc2 {[%emt 0:00:32] [#]} Qg4+ $18 {[%emt 0:01:25]} 0-1

[Event "13th All African Mixed Team Rapid-ch 202"]
[Site "Accra"]
[Date "2024.03.09"]
[Round "4.11"]
[White "Rongwane, Gomolemo"]
[Black "Akpa Prince"]
[Result "1-0"]
[ECO "D96"]
[WhiteElo "2021"]
[BlackElo "1845"]
[Annotator "RC"]
[PlyCount "55"]
[EventDate "2024.03.07"]
[EventType "rapid"]
[EventCountry "GHA"]
[SourceTitle "playchess.com"]
[Source "ChessBase"]
[SourceQuality "1"]
[TimeControl "900+10"]

1. d4 {[%emt 0:00:02]} Nf6 {[%emt 0:00:20]} 2. Nf3 {[%emt 0:00:02]} g6 {[%emt 0:00:02]} 3. c4 {[%emt 0:00:25]} d5 {[%emt 0:00:01]} 4. Nc3 {[%emt 0:00:17]} Bg7 {[%emt 0:00:03]} 5. Qa4+ {[%emt 0:00:32]} c6 {[%emt 0:00:13]} 6. Bf4 {[%emt 0:00:30]} dxc4 {[%emt 0:00:11]} 7. Qxc4 {[%emt 0:00:08]} O-O {[%emt 0:00:30]} 8. e3 {[%emt 0:00:06]} Be6 {[%emt 0:00:16]} 9. Qa4 {[%emt 0:00:25]} Nbd7 {[%emt 0:00:08]} 10. Ng5 {[%emt 0:00:14]} Bf5 {[%emt 0:00:27]} 11. e4 {[%emt 0:01:17]} Nb6 {[%emt 0:00:07]} 12. Qd1 {[%emt 0:00:10]} Bc8 {[%emt 0:01:34]} 13. Be2 {[%emt 0:00:09]} h6 {[%emt 0:00:09]} 14. Nf3 {[%emt 0:00:04]} g5 {[%emt 0:00:27]} 15. Be5 {[%emt 0:00:23]} Bg4 {[%emt 0:00:39]} 16. h4 {[%emt 0:00:41]} Bxf3 {[%emt 0:00:39]} 17. gxf3 {[%emt 0:00:18]} Nbd7 {[%emt 0:00:28]} 18. hxg5 {[%emt 0:00:06]} hxg5 {[%emt 0:00:08]} 19. Bg3 {[%emt 0:00:22]} Qa5 {[%emt 0:01:02]} 20. Qd2 {[%emt 0:00:21]} Rfd8 {[%emt 0:00:38]} 21. O-O-O {[%emt 0:01:19]} Nf8 {[%emt 0:00:54]} 22. Kb1 {[%emt 0:00:21]} Ng6 {[%emt 0:01:27]} 23. Rhg1 {[%emt 0:01:45]} e5 {[%emt 0:02:34]} 24. Qxg5 {[%emt 0:00:31]} Nh7 {[%emt 0:00:11]} 25. Qf5 {[%emt 0:00:16]} Re8 {[%emt 0:02:38]} 26. Bc4 {[%emt 0:00:15]} Qc7 {[%emt 0:00:11]} 27. Qxg6 {[%emt 0:00:06]} b5 {[%emt 0:00:15]} 28. Bxe5 {[%emt 0:00:07]} 1-0

[Event "13th All African Mixed Team Rapid-ch 202"]
[Site "Accra"]
[Date "2024.03.09"]
[Round "4.12"]
[White "Ayiku, Angela Naa Amerley"]
[Black "Banda Natalie Katlo"]
[Result "0-1"]
[ECO "B10"]
[WhiteElo "1629"]
[BlackElo "1772"]
[Annotator "NA RC"]
[PlyCount "112"]
[EventDate "2024.03.07"]
[EventType "rapid"]
[EventCountry "GHA"]
[SourceTitle "playchess.com"]
[Source "ChessBase"]
[SourceQuality "1"]
[TimeControl "900+10"]

1. e4 {[%emt 0:00:04]} c6 {[%emt 0:00:01]} 2. Nf3 {[%emt 0:00:04]} d5 {[%emt 0:00:01]} 3. e5 {[%emt 0:00:17]} Bg4 {[%emt 0:00:08]} 4. d4 {[%emt 0:00:14]} e6 {[%emt 0:00:10]} 5. Be2 {[%emt 0:00:07]} Nd7 {[%emt 0:00:15]} 6. O-O {[%emt 0:00:08]} Ne7 {[%emt 0:00:32]} 7. Nc3 {[%emt 0:00:41]} Bxf3 {[%emt 0:01:16]} 8. Bxf3 {[%emt 0:00:07]} c5 {[%emt 0:00:03]} 9. Re1 {[%emt 0:00:22]} cxd4 {[%emt 0:00:03]} 10. Qxd4 {[%emt 0:00:05]} Nc6 {[%emt 0:00:05]} 11. Qf4 {[%emt 0:00:48]} Qc7 {[%emt 0:00:15]} 12. Bd2 {[%emt 0:01:32]} Be7 {[%emt 0:03:06]} 13. Nb5 {[%emt 0:00:55]} Qb6 {[%emt 0:00:41]} 14. a4 {[%emt 0:00:06]} a6 {[%emt 0:00:45]} 15. Be3 {[%emt 0:00:53]} Qd8 {[%emt 0:00:21]} 16. Nd6+ {[%emt 0:00:05]} Bxd6 {[%emt 0:00:11]} 17. exd6 {[%emt 0:00:02]} Nf6 {[%emt 0:01:16]} 18. Qg5 {[%emt 0:01:47]} Rg8 {[%emt 0:01:33]} 19. Bc5 {[%emt 0:00:14]} b6 {[%emt 0:01:04]} 20. Ba3 {[%emt 0:00:04]} Nd4 {[%emt 0:00:15]} 21. Bd1 {[%emt 0:00:54]} Ne4 {[%emt 0:00:42]} 22. Qf4 {[%emt 0:04:25]} Qf6 {[%emt 0:00:26]} 23. Qxf6 {[%emt 0:00:52]} Nxf6 {[%emt 0:05:51]} 24. c3 {[%emt 0:00:12]} Nc6 {[%emt 0:00:00]} 25. Bf3 {[%emt 0:00:07]} Na5 {[%emt 0:00:00]} 26. Bb4 {[%emt 0:01:32]} Nb3 {[%emt 0:00:00]} 27. Rad1 {[%emt 0:00:32]} Kd7 {[%emt 0:00:00]} 28. c4 {[%emt 0:00:16]} Rge8 {[%emt 0:00:00]} 29. cxd5 {[%emt 0:00:24]} exd5 {[%emt 0:00:00]} 30. Rxe8 {[%emt 0:00:15]} Rxe8 {[%emt 0:00:00]} 31. h3 {[%emt 0:00:13]} a5 {[%emt 0:00:00]} 32. Ba3 {[%emt 0:00:18]} Re5 {[%emt 0:00:00]} 33. Rd3 {[%emt 0:00:24]} Nc5 {[%emt 0:00:11]} 34. Rd1 {[%emt 0:00:16]} Kxd6 {[%emt 0:00:14]} 35. b4 {[%emt 0:00:05]} axb4 {[%emt 0:00:06]} 36. Bxb4 {[%emt 0:00:02]} Kc7 {[%emt 0:00:34]} 37. Rc1 {[%emt 0:00:06]} Nfd7 {[%emt 0:00:46]} 38. Bg4 {[%emt 0:00:06]} Re4 {[%emt 0:00:20]} 39. Bxd7 {[%emt 0:00:03]} Rxb4 {[%emt 0:00:02]} 40. Bb5 {[%emt 0:00:10]} Kd6 {[%emt 0:00:02]} 41. Ra1 {[%emt 0:00:07]} d4 {[%emt 0:00:19]} 42. Ra3 {[%emt 0:00:03]} Rb3 {[%emt 0:00:07]} 43. Rxb3 {[%emt 0:00:11]} Nxb3 {[%emt 0:00:01]} 44. Bd3 {[%emt 0:00:01]} Nc5 {[%emt 0:00:07]} 45. Bb5 {[%emt 0:00:03]} d3 {[%emt 0:00:06]} 46. Kf1 {[%emt 0:00:00]} Kd5 {[%emt 0:00:02]} 47. Ke1 {[%emt 0:00:02]} Kd4 {[%emt 0:00:02]} 48. Kd2 {[%emt 0:00:01]} Nb3+ {[%emt 0:00:02]} 49. Kd1 {[%emt 0:00:07]} Kc3 {[%emt 0:00:10]} 50. f4 {[%emt 0:00:06]} Nd4 {[%emt 0:00:12]} 51. g4 {[%emt 0:00:04]} Nxb5 {[%emt 0:00:02]} 52. axb5 {[%emt 0:00:01]} d2 {[%emt 0:00:13]} 53. h4 {[%emt 0:00:03]} g6 {[%emt 0:00:08]} 54. f5 {[%emt 0:00:13]} gxf5 {[%emt 0:00:02]} 55. gxf5 {[%emt 0:00:02]} f6 {[%emt 0:00:05]} 56. h5 {[%emt 0:00:15]} h6 {[%emt 0:00:00]} 0-1